Cogmind - Beta 14 @@@ ROGUE MODE // 2024.09.24 @ 17:38:01 Player: siona Result: Destroyed by D8-VMI(R) with Subdweller Machine Gun Performance ------------- Evolutions (0) 0 Regions Visited (3) 600 Robots Destroyed (14) 70 Value Destroyed (382) 382 Prototype IDs (0) 0 Alien Tech Used (0) 0 Bonus (0) 0 TOTAL SCORE: 1052 Bonus ------- None Cogmind --------- Core Integrity 0/250 Matter 227/300 Energy 125/125 System Corruption 2% Temperature Cool (0) Movement Core (150) Ox2 Location -10/Subcaves Parts ------- > --- POWER (1) -------- Light Ion Engine > --- PROPULSION (2) --- (None) > --- UTILITY (2) ------ (None) > --- WEAPON (2) ------- Particle Gun (fused) Particle Gun > --- INVENTORY (5) ---- Subdweller Power Source Makeshift Shrapnel Gun Battle Cannon Mining Laser Multitool Peak State ------------ > --- POWER ------------ Ion Engine > --- PROPULSION ------- Light Treads > --- UTILITY ---------- Small Storage Unit Signal Interpreter > --- WEAPON ----------- Makeshift Shrapnel Gun Light Cannon > --- INVENTORY -------- Light Ion Engine Scrap Shield Particle Gun Particle Gun Light Assault Rifle Mining Laser Multitool [Rating: 10] Favorites ----------- Power Ion Engine Engine Ion Engine Propulsion Light Treads Treads Light Treads Utility Small Storage Unit Storage Small Storage Unit Processor Signal Interpreter Protection Scrap Shield Weapon Light Assault Rifle Energy Gun Particle Gun Ballistic Gun Light Assault Rifle Ballistic Cannon Light Cannon Special Weapon Mining Laser Build | -11 -10 -10 -10 ------- Run | Yrd Mat Min Sub Slots Evolved . | . . . . Power . | . . . . Propulsion . | . . . . Utility . | . . . . Weapon . | . . . . Parts Attached 17 | 6 . 1 10 Power 2 | 1 . . 1 Engine 2 | 1 . . 1 Core . | . . . . Reactor . | . . . . Propulsion 2 | 2 . . . Treads 2 | 2 . . . Leg . | . . . . Wheel . | . . . . Hover . | . . . . Flight . | . . . . Utility 3 | 1 . . 2 Device . | . . . . Storage 1 | 1 . . . Processor 1 | . . . 1 Hackware . | . . . . Protection 1 | . . . 1 Artifact . | . . . . Weapon 10 | 2 . 1 7 Energy Gun 3 | . . . 3 Energy Cannon . | . . . . Ballistic Gun 5 | 2 . . 3 Ballistic Cannon 1 | . . 1 . Launcher . | . . . . Special Weapon 1 | . . . 1 Impact Weapon . | . . . . Slashing Weapon . | . . . . Piercing Weapon . | . . . . Special Melee Weapon . | . . . . Unidentified Prototypes . | . . . . Parts Lost 5 | . . . 5 Power 1 | . . . 1 Propulsion 2 | . . . 2 Utility 1 | . . . 1 Weapon 1 | . . . 1 Highest Loss Streak 2 | . . . 2 To Critical Strikes . | . . . . Average Slot Usage (%) 74 | . 85 85 64 Engine 10 | . 14 14 7 Treads 15 | . 28 28 5 Storage 12 | . 14 14 11 Processor 6 | . . . 11 Energy Gun 7 | . . . 13 Ballistic Gun 15 | . 28 25 5 Ballistic Cannon 4 | . . 2 6 Peak Build Rating 10 | 6 6 7 10 Average Rating 6 | 4 6 6 6 On Entrance 4 | . 6 6 7 Naked Turns . | . . . . Heaviest Build 17 | 12 12 14 17 Greatest Support 40 | 40 40 40 40 Greatest Overweight (x) 4 | . . . 4 Average Overweight (x) . | . . . 1 Largest Inventory Capacity 8 | 8 8 8 8 Average Capacity 7 | 5 8 8 7 Most Carried 8 | 3 5 8 8 Average Carried 6 | 1 3 7 6 Final Capacity 8 | 8 8 8 5 Final Carried 8 | 3 5 8 5 Class Distribution -------------------- 100% | Mutant Dominant Class ---------------- Mutant | -10/Materials Mutant | -10/Mines Mutant | -10/Subcaves Resources | -11 -10 -10 -10 ----------- Run | Yrd Mat Min Sub Matter Collected 513 | 67 . 257 189 Remotely . | . . . . Salvage Created 428 | . . 227 201 Parts 20 | . . 11 9 Haulers Intercepted . | . . . . Recyclers Shooed . | . . . . Parts Field Recycled . | . . . . Retrieved Matter . | . . . . Parts Self-Destructed 12 | . . . 12 Prevented . | . . . . Kills | -11 -10 -10 -10 ------- Run | Yrd Mat Min Sub Combat Hostiles Destroyed 14 | . . 7 7 Guns 13 | . . 7 6 Cannons 1 | . . . 1 Classes Destroyed 3 | . . 2 1 Swarmer 6 | . . 3 3 Grunt 4 | . . 4 . Subdweller 4 | . . . 4 Best Kill Streak 3 | . . 3 3 Combat Bots Only 3 | . . 3 3 Max Kills in Single Turn 1 | . . 1 1 Gunslinging . | . . . . Exploded . | . . . . Melee . | . . . . Uniques/NPCs Destroyed . | . . . . Combat | -11 -10 -10 -10 -------- Run | Yrd Mat Min Sub Hostile Shots Fired 117 | . 2 48 67 Missed 30 | . . 14 16 Damage Taken 1166 | . 34 341 791 Core 266 | . . 43 223 Absorbed by Shields . | . . . . Core Remaining (%) 100 | 100 . . . Volleys Fired 63 | . 1 27 35 Largest 2 | . 2 2 2 Hottest 130 | . 40 40 130 Shots Fired 118 | . 2 56 60 Gun 92 | . 2 56 34 Cannon 20 | . . . 20 Launcher . | . . . . Special 6 | . . . 6 Kinetic 94 | . 2 56 36 Thermal 24 | . . . 24 Explosive . | . . . . Electromagnetic . | . . . . Robot Hit Streak 7 | . 2 6 7 Robot Miss Streak 6 | . . 3 6 Penetration Max . | . . . . Secondary Targets . | . . . . Shots Hit Robots 66 | . 2 32 32 Core Hits 31 | . 1 17 13 Critical Kills . | . . . . Critical Parts Destroyed . | . . . . Critical Strikes . | . . . . Melee Attacks . | . . . . Impact . | . . . . Slashing . | . . . . Piercing . | . . . . Sneak Attacks . | . . . . Combat Hostiles . | . . . . Follow-up Attacks . | . . . . Damage Inflicted 756 | 1 14 237 504 Guns 581 | . 14 237 330 Cannons 174 | . . . 174 Explosions . | . . . . Melee . | . . . . Ramming 1 | 1 . . . Kinetic 534 | . 14 237 283 Thermal 221 | . . . 221 Explosive . | . . . . Electromagnetic . | . . . . Impact . | . . . . Slashing . | . . . . Piercing . | . . . . Highest Corruption 2 | . 2 2 2 Average Corruption 2 | . 2 2 2 Corruption Purged . | . . . . Corruption Blocked . | . . . . Effects 29 | . 1 12 16 Message Errors 6 | . . 4 2 Matter Fused 9 | . . 2 7 Heat Flow Errors 5 | . 1 2 2 Energy Discharges 4 | . . 2 2 Parts Rejected 1 | . . . 1 Parts Fused 1 | . . . 1 Data Loss (major) 1 | . . . 1 Misfires 2 | . . 2 . Overload Shots . | . . . . Overflow Damage . | . . . . Projectiles . | . . . . Explosions . | . . . . Melee . | . . . . Knockbacks 1 | . . . 1 Impact . | . . . . Kinetic 1 | . . . 1 Secondary . | . . . . Self-Inflicted Damage . | . . . . Shots . | . . . . Rammed 1 | 1 . . . Targets Rammed 1 | 1 . . . Kicked . | . . . . Crushed . | . . . . Highest Temperature 255 | . 255 254 64 Average Temperature 63 | . 135 60 26 Received Heat Transfer 123 | . 18 99 6 Siege Activations . | . . . . Robots Corrupted . | . . . . Combat Hostiles . | . . . . Parts Fried . | . . . . Impact Corruptions . | . . . . Robots Melted . | . . . . Combat Hostiles . | . . . . Parts Melted 2 | . . . 2 Heat Transferred 518 | . . . 518 Parts Sabotaged . | . . . . Parts Stolen . | . . . . Parts Stripped . | . . . . Power Chain Reactions . | . . . . Alert | -11 -10 -10 -10 ------- Run | Yrd Mat Min Sub Peak Influence 135 | . . 135 . Initial . | . . . . Average 53 | . . 72 . Maximum Alert Level . | . . . . Low Security (%) 100 | 100 100 100 . Level 1 . | . . . . Level 2 . | . . . . Level 3 . | . . . . Level 4 . | . . . . Level 5 . | . . . . High Security . | . . . . Max Security . | . . . . Squads Dispatched 1 | . 1 . . Investigation . | . . . . Extermination . | . . . . Reinforcement 1 | . 1 . . Assault . | . . . . Garrison . | . . . . Intercept . | . . . . Searches Triggered . | . . . . Construction Impeded . | . . . . Haulers Reinforced . | . . . . Active Scanning Responses . | . . . . Cargo Convoy Interrupts . | . . . . Stealth | -11 -10 -10 -10 --------- Run | Yrd Mat Min Sub Distress Signals . | . . . . Communications Jammed . | . . . . Distress Signals . | . . . . Times Spotted 20 | . 2 8 10 Peak Tracking Total 3 | . 2 3 3 Tactical Retreats 1 | . . 1 . Traps | -11 -10 -10 -10 ------- Run | Yrd Mat Min Sub Traps Triggered 1 | . 1 . . Indirectly . | . . . . Trap Hack Attempts . | . . . . Triggered . | . . . . Disarmed . | . . . . Reprogrammed . | . . . . Reused . | . . . . Traps Extracted . | . . . . Installed . | . . . . Triggered . | . . . . Machines | -11 -10 -10 -10 ---------- Run | Yrd Mat Min Sub Machines Disabled . | . . . . Max in Single Turn . | . . . . Machines Repaired . | . . . . Machines Dismantled . | . . . . Machines Sabotaged . | . . . . Overloaded Fab Kills . | . . . . Hacking | -11 -10 -10 -10 --------- Run | Yrd Mat Min Sub Machines Accessed . | . . . . Terminals . | . . . . Fabricators . | . . . . Repair Stations . | . . . . Recycling Units . | . . . . Scanalyzers . | . . . . Garrison Access . | . . . . Total Hacks . | . . . . Successful . | . . . . Failed . | . . . . Catastrophic . | . . . . Database Lockouts . | . . . . Manual . | . . . . Terminals . | . . . . Fabricators . | . . . . Repair Stations . | . . . . Recycling Units . | . . . . Scanalyzers . | . . . . Garrison Access . | . . . . Terminal Hacks . | . . . . Fabricator Hacks . | . . . . Repair Station Hacks . | . . . . Recycling Unit Hacks . | . . . . Scanalyzer . | . . . . Garrison Access Hacks . | . . . . Unauthorized Hacks . | . . . . Terminals . | . . . . Fabricators . | . . . . Repair Stations . | . . . . Recycling Units . | . . . . Scanalyzers . | . . . . Garrison Access . | . . . . Data Cores Recovered . | . . . . Used . | . . . . Hacking Detections . | . . . . Full Trace Events . | . . . . Feedback Events . | . . . . Feedback Blocked . | . . . . Robot Schematics Acquired . | . . . . Robots Built . | . . . . Authchips . | . . . . Time . | . . . . Total Robot Build Rating . | . . . . Part Schematics Acquired . | . . . . Parts Built . | . . . . Authchips . | . . . . Time . | . . . . Total Part Build Rating . | . . . . Parts Repaired . | . . . . Time . | . . . . Parts Recycled . | . . . . Recycled Matter . | . . . . Retrieved Matter . | . . . . Retrieved Components . | . . . . Parts Scanalyzed . | . . . . Part Schematics Acquired . | . . . . Parts Damaged . | . . . . Bothacking | -11 -10 -10 -10 ------------ Run | Yrd Mat Min Sub Used RIF Installer . | . . . . Robots Hacked . | . . . . Non-combat . | . . . . Combat . | . . . . Robot Hacks Applied . | . . . . Relay Couplers Released . | . . . . Fabnet Peak Effective % . | . . . . Robots Rewired . | . . . . Allies Hacked . | . . . . Hacks Repelled . | . . . . Allies | -11 -10 -10 -10 -------- Run | Yrd Mat Min Sub Total Allies . | . . . . Largest Group . | . . . . Highest-Rated Group . | . . . . Highest-Rated Ally . | . . . . Total Orders . | . . . . Ally Attacks . | . . . . Total Damage . | . . . . Kills . | . . . . Allies Corrupted . | . . . . Allies Melted . | . . . . Intel | -11 -10 -10 -10 ------- Run | Yrd Mat Min Sub Robot Analysis Total . | . . . . Derelict Logs Recovered 2 | . . 2 . Drone Launches . | . . . . Drone Recoveries . | . . . . Exploration | -11 -10 -10 -10 ------------- Run | Yrd Mat Min Sub Turns Passed 2493 | 80 229 902 1282 Spaces Moved 1318 | 43 97 512 666 Core 407 | 2 . . 405 Treads 911 | 41 97 512 261 Legs . | . . . . Wheels . | . . . . Hover . | . . . . Flight . | . . . . Fastest Speed 50 | 50 160 160 150 Average Speed 164 | 154 160 160 169 Slowest Speed 250 | 160 160 160 250 Overloaded Moves . | . . . . Propulsion Burnouts . | . . . . Robots Hopped . | . . . . Cave-ins Triggered . | . . . . Exploration Rate (%) 42 | 5 23 97 46 Regions Visited 3 Branch Regions 2 Pre-discovered Areas 1 | . . 1 . Known Exits Taken . | . . . . Unknown Exits Taken 3 | 1 1 1 . Scrap Searched 1 | . . 1 . Spaces Dug . | . . . . Terrain Destroyed . | . . . . Melee . | . . . . Projectile . | . . . . AOE . | . . . . Terrain Rammed . | . . . . Walls Destroyed . | . . . . Machines Disabled . | . . . . Actions | -11 -10 -10 -10 --------- Run | Yrd Mat Min Sub Total 1525 | 53 169 554 749 Wait 100 | . 70 7 23 Move 1315 | 42 96 511 666 Hop . | . . . . Pick Up 17 | 4 2 5 6 Fast Attach 6 | 5 . 1 . Attach 7 | 1 . . 6 Detach 1 | . . . 1 Swap 4 | . . . 4 Drop 11 | . . 3 8 Fire 63 | . 1 27 35 Melee . | . . . . Ram . | . . . . Kick . | . . . . Crush 1 | 1 . . . Escape Stasis . | . . . . Rewire . | . . . . Trap . | . . . . Miscellaneous . | . . . . Route ------- -11/Scrapyard -10/Materials -10/Mines (discovered 3 exits: [*Mat x2] / [*Sub]) -10/Subcaves (discovered 2 exits: *Mat x2) History --------- Turn | Location | Event 15 | -11/Scrapyard | Discovered new exit (range 15) 81 | -11/Scrapyard | Entered Materials 190 | -10/Materials | Discovered new exit (range 15) 310 | -10/Materials | Build established: Mutant 310 | -10/Materials | Entered Mines 357 | -10/Mines | Learned location of Storage (-9) 420 | -10/Mines | Learned Materials terminal intel 459 | -10/Mines | Discovered new exit (range 10) 667 | -10/Mines | Discovered new exit (range 6) 1198 | -10/Mines | Discovered new exit (range 10) 1212 | -10/Mines | Entered Subcaves 1225 | -10/Subcaves | Discovered new exit (range 7) 1261 | -10/Subcaves | Identified exit to Materials 1799 | -10/Subcaves | Core integrity fell below 50% 2159 | -10/Subcaves | A swath of the cavern ceiling suddenly collapsed 2189 | -10/Subcaves | Shifting Twisted Machinery released Mak. Light Armor Plating 2196 | -10/Subcaves | Shifting Twisted Machinery released Flamer 2233 | -10/Subcaves | Discovered exit to Materials (range 8) 2302 | -10/Subcaves | Core integrity fell below 20% 2432 | -10/Subcaves | Shifting Twisted Machinery released Battle Cannon 2434 | -10/Subcaves | Shifting Twisted Machinery released Piercing Trap 2484 | -10/Subcaves | Ambushed by Subdwellers from Twisted Machinery 2494 | -10/Subcaves | Destroyed by D8-VMI(R) with Subdweller Machine Gun Last Messages --------------- 02317_ Sub. Optics melted. 02317_ IJ-VDU(R) destroyed. 02318_ Subatomizers dissect the Sub. Monowheel. 02323_ Acquired Scrap Shield Fragment. 02328_ Dropped Scrap Shield Fragment. 02328_ Acquired 52 matter. 02331_ Subatomizers dissect the Sub. Monowheel. 02331_ Acquired 41 matter. 02334_ Dropped Scrap Shield Fragment. 02336_ Acquired Sub. Power Source. 02341_ Subatomizers dissect the Sub. Monowheel. 02391_ System corrupted: Matter fused (-8). 02422_ System corrupted: Energy discharge (-26). Battle Cannon falls loose from the Twisted Machinery. Piercing Trap falls loose from the Twisted Machinery. 02442_ Acquired Battle Cannon. 02484_ NI-K2D(R) emerges from the Twisted Machinery. Map ----- +----------------------------------------------------+ | | | ?????????????????????????????????????????????????? | | ?????????????????????????????????????????????????? | | ?????????????????????????????????????????????????? | | ?????????????????????????????????????????????????? | | ?????????????????????????????????????????????????? | | ?????????????????????????????????????????????????? | | ?????????????????????????????????????????????????? | | ?????????????????????????????????????????????????? | | ?????????????????????????????????????????????????? | | ?????????????????????????????????????????????????? | | ?????????????????????????????????????????????????? | | ?????????????????????????????????????????????????? | | ?????????????????????????????????????????????????? | | ?????????????????????????????????????????????????? | | ???#######???????????????????????????????????????? | | ??##"""" ?###?????????#######?##?????????????????? | | ??# ## ?????????## "#"#" ##??? #???????????? | | ### """ ????###### """" ??? ??#??????????? | | " " ???### ## """ ?? ?? ? ??????????? | | # #""#???## #""" ??? #? # ??????????? | | # ##??# "## #??? # #????????????? | | "& #### """### R### ?????????????? | | """ ## ### # # #?????????????????? | | " ### R #?????????????????? | | " @ # #?????????????????? | | #### ""#####????????????????????? | | ##??## ######### ###????????????????????????? | | ##????# #???????####??????????????????????????? | | #????# #?????????????????????????????????????? | | ##???? ?????????????????????????????????????? | | ##??# ????????????????????????????????????? | | ##### ???????????????????????????????????? | | # ### ??????????????????????????????????? | | # #?######?????????????????????????????????? | | ## ##????????????????????????????????????????? | | ###?##?????????????????????????????????????????? | | ##??????????????????????????????????????????????? | | #???????????????????????????????????????????????? | | #???????????????????????????????????????????????? | | ##???????????????????????????????????????????????? | | #????????????????????????????????????????????????? | | ?????????????????????????????????????????????????? | | ?????????????????????????????????????????????????? | | ???? ????????????????????????????????????????????? | | #???????????????????????????????????????????? | | #??????????????????????????????????????????????? | | #???????????????????????????????????????????????? | | ##???????????????????????????????????????????????? | | #????????????????????????????????????????????????? | +----------------------------------------------------+ Best States ------------- Heat Dissipation 25 Energy Generation 10 Energy Capacity 250 Matter Stores 300 Matter Capacity 300 Sight Range 16 Terrain Scan Density 10 Evasion (%) 40 Recoil Reduction 2 Item Schematics ----------------- None Robot Schematics ------------------ None Fabricated ------------ Nothing Alien Tech Used ----------------- None Achievements -------------- None Challenges ------------ None Game ------ Seed ForceBraceCapacitor Manual? 0 Play Time 00:14:55 Cumulative 13.4 hours Start 2024.09.24 @ 17:15:05 End 2024.09.24 @ 17:38:01 Sessions 1 Manual Loads 0 Difficulty Rogue Special Mode None Game No. 25 Rogue 24 Adventurer 1 Explorer 0 Win Type - Total 0 Types 0/0/0/0/0/0/0/0/0 Lore% 11 Gallery% 16 Achievement% 17 Wizard Run 0 Options --------- Layout 1 ASCII 0 Keyboard 0 Movement Mouse Keybinds 0 Fullscreen 1 Font 32/SmallcapsGlow Map View 50x35 Zoom Use 0% Tactical HUD 1 Map Filters NONE Filters NONE Steam 1 RUN: 1c853528-6982-4f86-9fb6-967528e1bc61